bitfinex-derivatives/quotes_SOLF0:USTF0_20260104
["timestamp","ask_amount","ask_price","bid_price","bid_amount"]
[1767560437326,6.722,133.95,133.89,0.31541442]
[1767560438728,107.23327273,133.96,133.86,158.47675015]
[1767560439126,107.23327273,133.96,133.86,158.79216457]
[1767560439432,6.7229,133.93,133.86,158.79216457]
[1767560443330,6.7235,133.92,133.86,158.79216457]
[1767560444225,6.7229,133.93,133.87,0.31541442]
[1767560445231,6.7229,133.93,133.87,7.04121442]
[1767560445531,6.7229,133.93,133.88,0.31541442]
[1767560445829,88.22,133.98,133.9,0.31541442]
[1767560448732,6.7221,133.95,133.9,0.31541442]
[1767560449730,6.7213,133.97,133.9,6.7243]
[1767560449927,6.7213,133.97,133.91,0.31541442]
[1767560457540,6.7215,133.96,133.91,0.31541442]
[1767560462442,6.7209,133.97,133.91,7.03921442]
[1767560466751,6.7209,133.97,133.92,0.3097247]
[1767560467243,194.4353218,134.03,133.94,0.3097247]
[1767560467444,194.4353218,134.03,133.93,1.7133218]
[1767560467445,5.61670014,134.02,133.96,0.3097247]
[1767560467645,6.7193,134.01,133.96,0.3097247]
[1767560471352,6.7193,134.01,133.94,7.0321247]
[1767560472454,6.7193,134.01,133.95,0.3097247]
[1767560479466,106.2333218,134.01,133.91,0.3097247]
[1767560480658,6.7204,133.98,133.91,0.3097247]
[1767560481661,6.7204,133.98,133.91,7.0335247]
[1767560486962,1.7133218,133.99,133.91,0.3097247]
[1767560487168,5.59844604,133.98,133.9,7.0341247]
[1767560487369,1.7133218,133.97,133.9,7.0341247]
[1767560488574,8.4342218,133.97,133.9,7.0341247]
[1767560492882,6.7217,133.96,133.9,0.3097247]
[1767560494276,6.722,133.95,133.89,6.7249]
[1767560494881,6.722,133.95,133.89,7.03347765]
[1767560499185,6.7225,133.94,133.89,0.30857765]
[1767560499391,106.2796218,133.95,133.87,0.30857765]
[1767560499885,1.7133218,133.93,133.86,151.75075015]
[1767560500474,1.7133218,133.93,133.86,152.0593278]
[1767560500679,6.7241,133.91,133.86,152.0593278]
[1767560515198,6.7241,133.91,133.87,0.30857765]
[1767560517894,6.7245,133.9,133.86,151.75075015]
[1767560518496,1.7133218,133.91,133.85,0.30857765]
[1767560519605,6.7254,133.89,133.85,0.30857765]
[1767560523102,6.7242,133.91,133.85,0.30857765]
[1767560533400,6.7244,133.9,133.85,0.30857765]
[1767560537405,104.5932,133.92,133.83,0.30906148]
[1767560537605,104.6036,133.9,133.83,0.30906148]
[1767560537809,5.61160805,133.89,133.83,0.30906148]
[1767560538010,104.6036,133.9,133.81,26.44725203]
[1767560538211,5.61094214,133.89,133.81,26.44725203]
[1767560538407,104.6036,133.9,133.82,0.30906148]
[1767560538607,6.726,133.87,133.82,0.30906148]
[1767560541408,6.726,133.87,133.81,26.13819055]
[1767560542918,6.726,133.87,133.81,26.44725203]
[1767560543814,6.726,133.87,133.81,33.17615203]
[1767560544021,6.7254,133.88,133.82,0.30906148]
[1767560545620,6.7254,133.88,133.82,7.03746148]
[1767560547417,6.7249,133.9,133.84,0.30906148]
[1767560547823,88.26,133.93,133.84,0.30906148]
[1767560548122,5.60934625,133.92,133.84,0.30906148]
[1767560548320,88.26,133.93,133.84,0.30906148]
[1767560548516,6.7239,133.91,133.84,7.03646148]
[1767560548822,6.7239,133.91,133.85,0.30906148]
[1767560549619,6.7239,133.91,133.85,7.03586148]
[1767560558428,6.7239,133.91,133.85,0.30906148]
[1767560558734,6.7244,133.9,133.84,6.7274]
[1767560559135,6.7244,133.9,133.84,7.0516841]
[1767560560027,5.61329224,133.89,133.82,0.3242841]
[1767560560226,5.61318784,133.88,133.82,0.3242841]
[1767560560430,2.67947536,133.9,133.82,0.3242841]
[1767560560626,5.61317221,133.89,133.82,0.3242841]
[1767560560828,5.61317221,133.88,133.82,0.3242841]
[1767560561038,2.67947536,133.9,133.81,26.13819055]
[1767560561340,6.726,133.87,133.81,32.86709055]
[1767560561629,2.67947536,133.9,133.81,32.86709055]
[1767560561630,107.28497536,133.9,133.81,26.13819055]
[1767560561830,2.67947536,133.88,133.81,26.13819055]
[1767560562029,5.61328869,133.87,133.81,26.13819055]
[1767560562239,90.93947536,133.88,133.81,26.13819055]
[1767560562438,6.7272,133.85,133.81,26.13819055]
[1767560570842,6.7272,133.85,133.81,26.46247465]
[1767560574837,6.7274,133.84,133.81,26.46247465]
[1767560579750,6.7265,133.86,133.81,26.46247465]
[1767560580054,6.7265,133.86,133.82,0.3242841]
[1767560580751,88.28,133.88,133.82,0.3242841]
[1767560580945,104.5658,133.95,133.82,0.3242841]
[1767560580946,88.28,133.91,133.82,0.3242841]
[1767560581647,6.7244,133.9,133.84,0.32538036]
[1767560583953,6.7245,133.89,133.84,0.32538036]
[1767560584349,107.24527536,133.95,133.85,0.32538036]
[1767560584555,93.89302566,133.94,133.85,0.32538036]
[1767560584746,88.28,133.94,133.85,0.32538036]
[1767560585358,95.0022,133.94,133.86,0.32538036]
[1767560586558,95.0022,133.94,133.87,0.32538036]
[1767560587760,18.25925983,133.96,133.88,0.32538036]
[1767560588456,18.25925983,133.96,133.9,0.32538036]
[1767560588656,88.26,133.97,133.9,0.32538036]
[1767560589360,94.9803,133.97,133.91,0.32538036]
[1767560591763,1.71372964,134.0,133.92,0.32538036]
[1767560591963,89.97372964,134.0,133.92,0.32538036]
[1767560592564,6.7198,133.98,133.92,0.32538036]
[1767560595864,96.69282964,134.0,133.93,0.32538036]
[1767560596062,89.97372964,134.0,133.93,0.32538036]
[1767560596870,6.7193,133.99,133.93,0.32538036]
[1767560597072,1.71372964,134.02,133.94,0.32538036]
[1767560597763,6.7186,134.01,133.95,0.32538036]
[1767560597969,1.71372964,134.02,133.95,0.32538036]
[1767560599260,6.7183,134.01,133.95,0.32538036]
[1767560599468,1.71372964,134.02,133.95,0.32538036]
[1767560600765,13.37259992,134.04,133.95,0.32538036]
[1767560601166,6.7173,134.03,133.96,7.04598036]
[1767560601571,11.65887028,134.04,133.97,0.32538036]
[1767560602574,18.37567028,134.04,133.98,0.32538036]
[1767560606277,1.71372964,134.08,133.99,0.32538036]
[1767560606667,6.7157,134.07,134.0,0.32538036]
[1767560606968,1.71372964,134.1,134.01,0.32538036]
[1767560607573,88.2,134.11,134.03,0.32538036]
[1767560607970,88.2,134.11,134.04,0.32538036]
[1767560607971,6.7139,134.1,134.04,0.32538036]
[1767560608376,8.42762964,134.1,134.04,0.32538036]
[1767560608676,6.7142,134.09,134.04,0.32538036]
[1767560611766,1.71372964,134.1,134.04,0.32538036]
[1767560613774,6.7138,134.1,134.05,0.30864611]
[1767560616974,6.7142,134.09,134.05,0.30864611]
[1767560617470,6.7142,134.09,134.03,0.33541509]
[1767560618579,6.7147,134.08,134.03,0.33541509]
[1767560620480,8.42792964,134.1,134.03,0.33541509]
[1767560621174,6.7142,134.09,134.03,0.33541509]
[1767560622082,6.715,134.08,134.03,0.33541509]
[1767560623483,6.715,134.08,134.02,6.7177]
[1767560623685,6.715,134.08,134.02,7.05311509]
[1767560625587,1.71372964,134.08,134.0,0.33541509]
[1767560625789,1.71372964,134.06,134.0,0.33541509]
[1767560626377,8.42942964,134.06,134.0,0.33541509]
[1767560628191,1.71372964,134.05,133.99,6.7191]
[1767560628394,8.43012964,134.05,133.99,6.7191]
[1767560636407,8.43012964,134.05,133.99,7.05451509]
[1767560636799,1.71372964,134.05,133.99,0.33541509]
[1767560636999,6.7168,134.04,133.98,6.7197]
[1767560637402,6.7168,134.04,133.98,7.05511509]
[1767560637705,6.7162,134.06,134.0,0.33541509]
[1767560638703,6.7162,134.06,134.0,7.05411509]
[1767560645413,1.71372964,134.11,134.02,0.33825823]
[1767560645616,5.5898426,134.1,134.02,0.33825823]
[1767560645817,1.71372964,134.11,134.02,0.33825823]
[1767560646019,5.58954695,134.1,134.02,0.33825823]
[1767560646218,1.71372964,134.11,134.02,0.33825823]
[1767560646421,6.7145,134.09,134.03,7.05545823]
[1767560647119,6.7145,134.09,134.03,0.33825823]
[1767560647321,6.7147,134.08,134.03,0.33825823]
[1767560649821,2.67282282,134.11,133.99,0.33825823]
[1767560649822,107.11982282,134.09,133.99,0.33825823]
[1767560650024,2.67282282,134.07,133.99,0.33825823]
[1767560650912,6.7165,134.05,133.99,7.05705823]
[1767560654430,6.7165,134.05,133.99,0.33825823]
[1767560660135,6.7165,134.05,133.99,7.05725823]
[1767560660335,6.7165,134.05,134.0,0.33825823]
[1767560666126,6.7157,134.06,134.0,7.05695823]
[1767560666331,120.53512282,134.11,134.01,0.33825823]
[1767560666532,5.61358678,134.1,134.01,0.33825823]
[1767560666833,5.61358678,134.09,134.01,0.33825823]
[1767560667033,5.61358678,134.08,134.01,0.33825823]
[1767560667230,6.7152,134.08,134.01,7.05595823]
[1767560674148,6.7142,134.09,134.03,0.31570082]
[1767560675646,6.7142,134.09,134.04,6.7166]
[1767560675943,6.7142,134.09,133.99,107.19172282]
[1767560675944,2.67282282,134.11,133.99,0.32901343]
[1767560676151,5.61426489,134.1,133.99,0.32901343]
[1767560676349,5.61426489,134.09,133.99,0.32901343]
[1767560676546,6.7148,134.08,134.02,6.7177]
[1767560676752,6.7148,134.08,134.02,7.04671343]
[1767560683963,6.7148,134.08,134.03,0.32901343]
[1767560684165,6.7142,134.09,134.03,7.04601343]
[1767560685166,6.7142,134.09,134.04,7.04571343]
[1767560687067,6.7137,134.11,134.04,7.04571343]
[1767560687267,5.60717393,134.1,134.04,7.04571343]
[1767560687462,88.16,134.12,134.04,7.04571343]
[1767560687664,6.7142,134.1,134.04,7.04571343]
[1767560687855,2.67282282,134.11,134.02,0.32901343]
[1767560688059,5.60656686,134.1,134.02,0.32901343]
[1767560688363,107.10492282,134.11,133.97,121.1066179]
[1767560688667,2.67282282,134.09,133.98,0.32901343]
[1767560688858,5.60636017,134.08,133.98,0.32901343]
[1767560689060,6.7157,134.06,134.01,6.7182]
[1767560689363,2.67282282,134.09,134.01,6.7182]
[1767560689660,5.60720768,134.08,134.01,6.7182]
[1767560689861,2.67282282,134.09,134.01,6.7182]
[1767560690064,5.60720769,134.08,134.01,6.7182]
[1767560690262,2.67282282,134.09,134.0,7.04771343]
[1767560690463,5.60736756,134.08,134.0,7.04771343]
[1767560690768,2.67282282,134.09,134.0,7.04771343]
[1767560690968,5.60736756,134.08,134.0,7.04771343]
[1767560691168,2.67282282,134.09,134.0,7.04771343]
[1767560691370,5.60736883,134.08,134.0,7.04771343]
[1767560691572,6.7158,134.06,134.0,7.04771343]
[1767560701775,6.7158,134.06,134.0,6.7187]
[1767560705179,2.67282282,134.07,133.97,0.31295513]
[1767560705385,5.6119895,134.06,133.97,0.31295513]
[1767560705579,5.6119895,134.05,133.97,0.31295513]
[1767560705779,2.67282282,134.07,133.97,0.31295513]
[1767560705981,5.61239361,134.06,133.98,0.31295513]
[1767560706283,107.11982282,134.09,133.98,0.31295513]
[1767560706484,5.61203428,134.08,133.98,0.31295513]
[1767560706683,5.61203428,134.08,133.95,195.36222282]
[1767560706684,6.7158,134.06,134.0,6.7187]
[1767560707180,6.7154,134.07,134.01,6.7182]
[1767560707386,2.67282282,134.09,134.02,0.31295513]
[1767560707681,5.61173308,134.08,134.02,0.31295513]
[1767560707882,5.61173308,134.07,134.02,0.31295513]
[1767560708085,2.67282282,134.09,134.02,0.31295513]
[1767560708277,5.61173593,134.08,134.02,0.31295513]
[1767560708478,2.67282282,134.09,134.02,0.31295513]
[1767560708678,12.32653627,134.08,134.02,7.03055513]
[1767560708978,6.7147,134.08,134.02,7.03055513]
[1767560709179,6.7147,134.08,134.01,6.7182]
[1767560709374,5.61212626,134.07,134.01,6.7182]
[1767560709584,6.7147,134.08,134.01,6.7182]
[1767560709785,5.61252927,134.07,134.01,6.7182]
[1767560709986,6.7147,134.08,134.01,6.7182]
[1767560710177,5.61252927,134.07,134.01,6.7182]
[1767560710380,6.7147,134.08,134.01,6.7182]
[1767560710672,7.32404557,134.07,134.01,6.7182]
[1767560710877,1.71109957,134.07,134.01,6.7182]
[1767560711278,88.14,134.11,134.02,7.03065513]
[1767560711585,5.61251828,134.1,134.03,0.31295513]
[1767560711778,1.71109957,134.12,134.03,0.31295513]
[1767560711972,5.61171961,134.11,134.03,0.31295513]
[1767560712284,5.61171961,134.1,134.03,0.31295513]
[1767560712479,1.71109957,134.12,134.03,0.31295513]
[1767560712676,6.7138,134.1,134.03,7.02965513]
[1767560713886,6.7142,134.09,134.03,0.31295513]
[1767560714086,1.71109957,134.08,134.01,0.31295513]
[1767560714388,8.42579957,134.08,134.01,0.31295513]
[1767560715589,8.42579957,134.08,134.02,0.31295513]
[1767560717283,8.42529957,134.1,134.03,0.31295513]
[1767560717483,5.60148397,134.09,134.03,0.31295513]
[1767560717684,5.60148397,134.08,134.03,0.31295513]
[1767560717884,8.42529957,134.1,134.03,0.31295513]
[1767560718092,5.60147702,134.09,134.03,0.31295513]
[1767560718287,8.42529957,134.1,134.03,0.31295513]
[1767560718486,5.60113379,134.09,134.03,0.31295513]
[1767560718696,1.71109957,134.1,134.03,0.31295513]
[1767560718887,89.85109957,134.12,134.03,0.31295513]
[1767560719194,5.60043394,134.11,134.04,0.31295513]
[1767560719386,89.85109957,134.12,134.04,0.31295513]
[1767560719587,5.59923207,134.11,134.05,6.7161]
[1767560719786,96.56389957,134.12,134.05,6.7161]
[1767560719986,5.59923334,134.11,134.05,6.7161]
[1767560720189,96.56389957,134.12,134.05,6.7161]
[1767560720393,1.71109957,134.1,134.04,0.31295513]
[1767560721699,8.42489957,134.1,134.04,0.31295513]
[1767560723399,6.7138,134.1,134.04,0.31295513]
[1767560724690,96.56399957,134.12,134.04,0.31295513]
[1767560724895,5.59678104,134.11,134.04,0.31295513]
[1767560725198,96.56399957,134.12,134.04,0.31295513]
[1767560725392,5.59626234,134.11,134.04,0.31295513]
[1767560725592,96.56399957,134.12,134.04,0.31295513]
[1767560725793,5.5960718,134.11,134.04,0.31295513]
[1767560725991,96.56399957,134.12,134.04,0.31295513]
[1767560726191,5.5960718,134.11,134.04,0.31295513]
[1767560726394,96.56399957,134.12,134.04,0.31295513]
[1767560726698,5.59545984,134.11,134.04,0.31295513]
[1767560726899,96.56399957,134.12,134.04,0.31295513]
[1767560727101,5.59545984,134.11,134.04,0.31295513]
[1767560727300,96.56399957,134.12,134.04,7.02955513]
[1767560728299,96.56399957,134.12,134.06,0.31295513]
[1767560728500,96.56399957,134.12,134.05,6.7161]
[1767560729196,96.56399957,134.12,134.04,0.31295513]
[1767560729501,6.7133,134.11,134.04,0.31295513]
[1767560732000,6.7133,134.11,134.04,7.02955513]
[1767560732202,6.7133,134.11,134.05,0.31251658]
[1767560732502,6.7133,134.11,134.04,6.7166]
[1767560732692,89.85109957,134.12,134.03,0.31251658]
[1767560732693,8.42489957,134.1,134.03,0.31251658]
[1767560745519,6.7142,134.09,134.03,0.31251658]
[1767560753830,6.7142,134.09,134.03,7.02971658]
[1767560761933,1.71109957,134.06,134.0,0.30738097]
[1767560762137,1.71109957,134.1,134.0,0.30738097]
[1767560762333,5.60996022,134.09,134.0,0.30738097]
[1767560762635,5.60996022,134.08,134.0,0.30738097]
[1767560762831,1.71109957,134.1,134.0,0.30738097]
[1767560763032,5.66961948,134.09,134.0,0.30738097]
[1767560763233,5.66961948,134.08,134.03,6.7172]
[1767560763429,6.7142,134.09,134.03,6.7172]
[1767560763634,5.66976974,134.08,134.03,6.7172]
[1767560763836,6.7142,134.09,134.03,6.7172]
[1767560764142,5.66976689,134.08,134.03,6.7172]
[1767560764331,6.7142,134.09,134.03,6.7172]
[1767560764532,5.66953022,134.08,134.02,0.30738097]
[1767560764740,6.7142,134.09,134.02,0.30738097]
[1767560764941,5.66955745,134.08,134.02,0.30738097]
[1767560765140,6.7142,134.09,134.02,0.30738097]
[1767560765341,5.66956283,134.08,134.02,0.30738097]
[1767560765640,6.7142,134.09,134.02,0.30738097]
[1767560765840,5.66933477,134.08,134.02,0.30738097]
[1767560766041,6.7142,134.09,134.02,0.30738097]
[1767560766244,5.66933477,134.08,134.02,7.02508097]
[1767560766443,6.7142,134.09,134.02,7.02508097]
[1767560766647,5.66898789,134.08,134.02,7.02508097]
[1767560766835,6.7142,134.09,134.02,7.02508097]
[1767560767035,5.66898789,134.08,134.02,7.02508097]
[1767560767242,6.7142,134.09,134.02,7.02508097]
[1767560767442,5.66868954,134.08,134.02,7.02508097]
[1767560767645,6.7142,134.09,134.02,7.02508097]
[1767560767839,5.66868954,134.08,134.02,7.02508097]
[1767560768039,6.7142,134.09,134.02,7.02508097]
[1767560768240,5.66868954,134.08,134.02,7.02508097]
[1767560768441,6.7142,134.09,134.02,7.02508097]
[1767560768641,5.66842759,134.08,134.02,7.02508097]
[1767560768847,6.7142,134.09,134.02,7.02508097]
[1767560769041,5.66842506,134.08,134.02,7.02508097]
[1767560769246,6.7142,134.09,134.02,7.02508097]
[1767560769442,5.66819974,134.08,134.02,7.02508097]
[1767560769642,6.7142,134.09,134.02,7.02508097]
[1767560769942,5.66819974,134.08,134.02,7.02508097]
[1767560770142,6.7142,134.09,134.02,7.02508097]
[1767560770344,5.66819974,134.08,134.02,7.02508097]
[1767560770648,6.7142,134.09,134.02,7.02508097]
[1767560770844,5.66800418,134.08,134.02,7.02508097]
[1767560771050,6.7142,134.09,134.02,7.02508097]
[1767560771252,5.66800419,134.08,134.02,7.02508097]
[1767560771438,6.7142,134.09,134.02,7.02508097]
[1767560771638,5.668002,134.08,134.02,7.02508097]
[1767560771839,6.7142,134.09,134.02,7.02508097]
[1767560772039,5.668002,134.08,134.02,7.02508097]
[1767560772244,6.7142,134.09,134.02,7.02508097]
[1767560772442,5.66803645,134.08,134.02,7.02508097]
[1767560772651,6.7142,134.09,134.02,7.02508097]
[1767560772851,5.66803645,134.08,134.02,7.02508097]
[1767560773048,6.7142,134.09,134.02,7.02508097]
[1767560773246,5.66803645,134.08,134.02,7.02508097]
[1767560773447,6.7142,134.09,134.02,7.02508097]
[1767560773747,5.66817803,134.08,134.02,7.02508097]
[1767560774047,6.7142,134.09,134.02,7.02508097]
[1767560774246,5.66817803,134.08,134.02,7.02508097]
[1767560774444,6.7142,134.09,134.02,7.02508097]
[1767560774647,5.66831574,134.08,134.02,7.02508097]
[1767560774848,6.7142,134.09,134.02,7.02508097]
[1767560775047,5.67312913,134.08,134.02,7.02508097]
[1767560775351,6.7142,134.09,134.02,7.02508097]
[1767560775549,5.6730669,134.08,134.02,7.02508097]
[1767560775745,6.7142,134.09,134.02,7.02508097]
[1767560775948,5.6730669,134.08,134.02,7.02508097]
[1767560776148,6.7142,134.09,134.02,7.02508097]
[1767560776348,5.6730669,134.08,134.02,7.02508097]
[1767560776548,6.7137,134.1,134.03,7.02448097]
[1767560776744,6.7137,134.1,134.04,0.30738097]
[1767560776745,5.67309818,134.09,134.04,0.30738097]
[1767560776941,5.67309818,134.08,134.04,0.30738097]
[1767560777145,6.7137,134.1,134.04,0.30738097]
[1767560777346,5.67277495,134.09,134.04,0.30738097]
[1767560777544,94.853,134.12,134.05,0.30738097]
[1767560777746,5.67313021,134.11,134.05,0.30738097]
[1767560778050,5.67313021,134.1,134.05,0.30738097]
[1767560778246,94.853,134.12,134.05,0.30738097]
[1767560778552,5.67243752,134.11,134.05,0.30738097]
[1767560778753,5.67243752,134.1,134.05,0.30738097]
[1767560778949,94.853,134.12,134.05,0.30738097]
[1767560779147,5.67243879,134.11,134.05,0.30738097]
[1767560779349,5.67243879,134.1,134.05,0.30738097]
[1767560779550,94.853,134.12,134.05,0.30738097]
[1767560779749,5.67237521,134.11,134.05,0.30738097]
[1767560779948,5.67237521,134.1,134.05,0.30738097]
[1767560780149,94.853,134.12,134.05,0.30738097]
[1767560780343,5.67237521,134.11,134.05,0.30738097]
[1767560780547,5.67237521,134.1,134.05,0.30738097]
[1767560780855,94.853,134.12,134.05,0.30738097]
[1767560781055,5.67213896,134.11,134.05,0.30738097]
[1767560781257,5.67213896,134.1,134.05,0.30738097]
[1767560781554,94.853,134.12,134.05,0.30738097]
[1767560781754,5.67176052,134.11,134.05,0.30738097]
[1767560781958,5.67176052,134.1,134.05,0.30738097]
[1767560782161,94.853,134.12,134.05,0.30738097]
[1767560782350,5.67176052,134.11,134.05,0.30738097]
[1767560782550,5.67176052,134.1,134.05,0.30738097]
[1767560782749,94.853,134.12,134.05,0.30738097]
[1767560782954,5.67140796,134.11,134.05,0.30738097]
[1767560783153,5.67140796,134.1,134.05,0.30738097]
[1767560783353,94.853,134.12,134.05,0.30738097]
[1767560783554,5.67107818,134.11,134.05,0.30738097]
[1767560783754,5.67107818,134.1,134.05,0.30738097]
[1767560783953,94.853,134.12,134.05,0.30738097]
[1767560784153,5.67107818,134.11,134.05,0.30738097]
[1767560784350,5.67107818,134.1,134.05,0.30738097]
[1767560784554,94.853,134.12,134.05,0.30738097]
[1767560784755,5.67076871,134.11,134.05,0.30738097]
[1767560784954,5.67076871,134.1,134.05,0.30738097]
[1767560785156,6.7133,134.11,134.05,0.30738097]
[1767560785357,5.67076871,134.1,134.05,0.30738097]
[1767560785556,6.7133,134.11,134.05,0.30738097]
[1767560785757,5.67047754,134.1,134.05,0.30738097]
[1767560786057,6.7133,134.11,134.05,0.30738097]
[1767560786257,5.67047754,134.1,134.05,0.30738097]
[1767560786457,6.7133,134.11,134.05,0.30738097]
[1767560786659,5.67020302,134.1,134.05,0.30738097]
[1767560786860,6.7133,134.11,134.05,0.30738097]
[1767560787059,5.67020302,134.1,134.05,0.30738097]
[1767560787260,6.7133,134.11,134.05,0.30738097]
[1767560787460,5.66994377,134.1,134.05,0.30738097]
[1767560787662,6.7133,134.11,134.05,0.30738097]
[1767560787960,5.66994377,134.1,134.05,0.30738097]
[1767560788160,88.14,134.12,134.06,0.30738097]
[1767560788467,6.7125,134.13,134.06,0.30738097]
[1767560788657,19.18720884,134.17,134.09,0.30738097]
[1767560788854,12.47670884,134.17,134.09,0.30738097]
[1767560790770,19.18700884,134.17,134.1,6.7136]
[1767560791469,19.18700884,134.17,134.1,7.05309391]
[1767560791661,94.8296,134.19,134.1,7.05309391]
[1767560792670,6.7096,134.19,134.1,7.05309391]
[1767560793660,6.7096,134.19,134.11,0.33949391]
[1767560793861,6.7096,134.19,134.11,7.05259391]
[1767560794056,6.7096,134.19,134.12,0.33949391]
[1767560794367,6.7086,134.21,134.13,0.33949391]
[1767560795362,88.12,134.22,134.15,0.33949391]
[1767560795961,88.12,134.22,134.16,0.33142769]
[1767560796169,2.67290017,134.25,134.16,0.33142769]
[1767560796464,90.77290017,134.25,134.16,0.33142769]
[1767560797567,6.7073,134.23,134.16,0.33142769]
[1767560798960,94.8065,134.25,134.17,0.33142769]
[1767560800660,94.8065,134.25,134.17,7.04152769]
[1767560800862,2.67290017,134.23,134.12,0.33142769]
[1767560801063,2.67290017,134.23,134.13,0.33142769]
[1767560801870,2.67290017,134.21,134.13,0.33142769]
[1767560802468,107.01160017,134.23,134.13,0.33142769]
[1767560802770,6.7089,134.2,134.13,0.33142769]
[1767560807675,6.7093,134.19,134.12,6.7126]
[1767560807871,2.67290017,134.21,134.13,7.04352769]
[1767560808068,2.67290017,134.21,134.13,0.33142769]
[1767560808265,6.7093,134.19,134.13,0.33142769]
[1767560810477,6.7093,134.19,134.12,0.33142769]
[1767560814586,6.7098,134.18,134.12,0.33142769]
[1767560821089,6.7104,134.17,134.1,88.40998705]
[1767560822289,2.67290017,134.17,134.08,0.32998705]
[1767560822493,2.67290017,134.17,134.06,0.32998705]
[1767560822994,6.7117,134.14,134.07,6.7152]
[1767560823194,104.3982,134.15,134.06,0.32998705]
[1767560824596,6.7128,134.12,134.06,0.32998705]
[1767560824892,104.3902,134.16,134.06,0.32998705]
[1767560825196,107.07050017,134.15,134.05,88.38998705]
[1767560826696,6.713,134.12,134.05,88.38998705]
[1767560829295,6.713,134.12,134.06,0.32998705]
[1767560831707,6.713,134.12,134.05,88.06]
[1767560832399,6.713,134.12,134.05,88.38998705]
[1767560832605,8.42288945,134.12,134.05,88.38998705]
[1767560833105,8.42288945,134.12,134.05,0.32998705]
[1767560834812,6.713,134.12,134.05,0.32998705]
[1767560835311,6.713,134.12,134.05,7.04618705]
[1767560837612,6.713,134.12,134.06,0.32998705]
[1767560839214,6.712,134.14,134.07,0.32998705]
[1767560843814,6.7122,134.13,134.07,0.32998705]
[1767560855420,6.7127,134.12,134.07,0.32998705]
[1767560856324,6.7132,134.11,134.07,0.32998705]
[1767560861227,6.7126,134.13,134.07,0.32998705]
[1767560863028,6.7118,134.14,134.08,0.31904027]
[1767560863328,1.70988945,134.17,134.08,0.31904027]
[1767560863628,5.62786924,134.16,134.08,0.31904027]
[1767560863828,1.70988945,134.17,134.08,0.31904027]
[1767560864025,5.62786924,134.16,134.08,0.31904027]
[1767560864225,1.70988945,134.17,134.08,0.31904027]
[1767560864421,5.63064298,134.16,134.08,0.31904027]
[1767560864620,6.7108,134.16,134.08,7.03354027]
[1767560867230,6.7108,134.16,134.09,6.7141]
[1767560868429,6.7108,134.16,134.09,7.03314027]
[1767560873246,6.7108,134.16,134.09,0.31904027]
[1767560874646,1.70988945,134.15,134.07,8.42478945]
[1767560874850,1.70988945,134.13,134.07,0.31904027]
[1767560876550,8.42228945,134.13,134.07,0.31904027]
[1767560881053,6.7129,134.12,134.07,0.31904027]
[1767560883257,8.42188945,134.14,134.07,0.31904027]
[1767560883457,5.62967792,134.13,134.07,0.31904027]
[1767560883657,8.42188945,134.14,134.07,0.31904027]
[1767560883857,5.62967792,134.13,134.07,0.31904027]
[1767560884059,8.42188945,134.14,134.07,0.31904027]
[1767560884259,5.62965333,134.13,134.07,0.31904027]
[1767560884459,8.42188945,134.14,134.07,0.31904027]
[1767560884759,5.62989796,134.13,134.07,0.31904027]
[1767560884958,8.42188945,134.14,134.07,0.31904027]
[1767560885147,5.62989796,134.13,134.07,0.31904027]
[1767560885346,8.42188945,134.14,134.07,0.31904027]
[1767560885551,5.62973494,134.13,134.07,0.31904027]
[1767560885756,8.42188945,134.14,134.07,0.31904027]
[1767560885953,5.62973494,134.13,134.07,0.31904027]
[1767560886155,8.42188945,134.14,134.07,0.31904027]
[1767560886354,5.62971038,134.13,134.07,0.31904027]
[1767560886555,8.42188945,134.14,134.07,0.31904027]
[1767560886752,5.62957757,134.13,134.07,0.31904027]
[1767560886954,8.42188945,134.14,134.07,0.31904027]
[1767560887259,5.62956198,134.13,134.07,7.03424027]
[1767560887461,8.42188945,134.14,134.07,7.03424027]
[1767560887655,5.62942565,134.13,134.07,7.03424027]
[1767560887856,8.42188945,134.14,134.07,7.03424027]
[1767560888058,5.62942565,134.13,134.07,7.03424027]
[1767560888258,8.42188945,134.14,134.07,7.03424027]
[1767560888460,5.62927901,134.13,134.07,7.03424027]
[1767560888657,8.42188945,134.14,134.07,7.03424027]
[1767560888957,5.62927848,134.13,134.07,7.03424027]
[1767560889157,8.42188945,134.14,134.07,7.03424027]
[1767560889457,5.62927846,134.13,134.07,7.03424027]
[1767560889660,8.42188945,134.14,134.07,7.03424027]
[1767560889858,5.62912939,134.13,134.07,7.03424027]
[1767560890061,6.7122,134.13,134.07,0.31904027]
[1767560892268,1.70988945,134.15,134.07,7.03424027]
[1767560892469,5.628429,134.14,134.07,7.03424027]